bitfinex-derivatives/quotes_ETHF0:USTF0_20250530
["timestamp","ask_amount","ask_price","bid_price","bid_amount"]
[1748574319324,3.21349519,2634.7,2634.3,3.2078]
[1748574319325,0.00569519,2634.7,2634.4,1.2482]
[1748574319619,0.00569519,2634.7,2634.6,3.2078]
[1748574319819,0.76467519,2634.7,2634.4,1.2482]
[1748574320015,0.00569519,2634.7,2634.4,1.2482]
[1748574320217,0.76467519,2634.7,2634.4,1.2482]
[1748574320415,0.00569519,2634.7,2634.4,1.2482]
[1748574320624,0.75903,2634.5,2634.1,7.03349519]
[1748574320821,0.75906,2634.4,2634.2,1.2963]
[1748574321019,1.3238,2634.6,2634.2,1.2963]
[1748574321222,0.75908,2634.4,2634.2,1.2963]
[1748574321424,0.75912,2634.2,2634.1,0.00569519]
[1748574323424,1.98282,2634.2,2634.1,0.00569519]
[1748574325316,6.98282,2634.2,2634.1,0.00569519]
[1748574325523,5.19062,2634.2,2634.1,0.00569519]
[1748574329227,5.37972,2634.2,2634.1,0.00569519]
[1748574329828,3.3969,2634.2,2634.1,0.00569519]
[1748574330031,0.94822,2634.2,2634.1,0.00569519]
[1748574330234,0.1891,2634.2,2634.1,0.76484519]
[1748574330539,0.1891,2634.2,2634.1,3.97264519]
[1748574330727,0.1891,2634.2,2634.1,4.63874519]
[1748574334732,0.94822,2634.2,2634.1,0.00569519]
[1748574335429,5.94822,2634.2,2634.1,0.00569519]
[1748574335932,5.94822,2634.2,2633.4,1.97963]
[1748574335933,1.89793,2634.1,2633.4,1.2203]
[1748574336143,3.16558,2634.0,2633.4,1.2203]
[1748574336344,0.7593,2633.6,2633.4,1.2203]
[1748574336842,1.89816,2633.7,2633.3,3.2078]
[1748574337046,0.75938,2633.3,2633.2,0.00569519]
[1748574337440,2.02698,2633.3,2633.2,0.00569519]
[1748574337838,2.98874157,2633.3,2633.2,0.00569519]
[1748574338043,2.98875031,2633.3,2633.2,0.00569519]
[1748574342151,2.02698,2633.3,2633.2,0.00569519]
[1748574342345,2.99043349,2633.3,2633.2,0.00569519]
[1748574342740,0.96345349,2633.3,2633.2,0.76510519]
[1748574342954,3.2078,2633.4,2633.3,0.75938]
[1748574343147,3.2078,2633.4,2633.3,1.97448]
[1748574343858,3.96715,2633.4,2633.3,1.2151]
[1748574344952,3.2078,2633.4,2633.3,1.2151]
[1748574345154,3.2078,2633.4,2633.3,1.97448]
[1748574345451,0.00569519,2633.5,2633.4,0.75935]
[1748574345652,0.00569519,2633.5,2633.4,2.00775]
[1748574347756,0.00569519,2633.5,2633.4,1.2484]
[1748574347950,0.00569519,2633.5,2633.4,2.00775]
[1748574350354,0.1891,2634.2,2633.6,1.89817]
[1748574350560,0.1891,2634.2,2634.1,3.96695]
[1748574352463,0.1891,2634.2,2634.1,5.28905]
[1748574353554,3.2078,2635.1,2634.2,1.89781]
[1748574353764,3.2078,2635.9,2634.8,3.2078]
[1748574353963,3.2078,2635.9,2635.3,3.2078]
[1748574354159,3.2078,2635.9,2635.4,1.3313]
[1748574354666,0.75873,2635.6,2635.4,1.33699519]
[1748574354859,1.2569,2635.8,2635.4,1.33699519]
[1748574355162,1.2569,2635.8,2635.4,0.00569519]
[1748574355362,0.7587,2635.7,2635.4,0.00569519]
[1748574355558,1.2569,2635.8,2635.4,0.00569519]
[1748574355764,1.2569,2635.6,2635.4,0.00569519]
[1748574355966,0.75874,2635.5,2635.4,0.00569519]
[1748574357158,3.96654,2635.5,2635.4,0.00569519]
[1748574357355,8.96654,2635.5,2635.4,0.00569519]
[1748574357556,0.75893,2634.9,2634.7,5.1455]
[1748574357763,0.75897,2634.8,2634.6,3.2078]
[1748574357964,0.75897,2634.7,2634.6,3.2078]
[1748574358172,0.6095,2634.7,2634.3,4.63207]
[1748574358362,0.759,2634.6,2634.3,3.873]
[1748574358667,1.96682,2634.6,2634.3,4.63208]
[1748574359369,0.75903,2634.5,2634.2,0.76479519]
[1748574359665,1.2078,2634.6,2634.3,0.75908]
[1748574359971,1.96682,2634.6,2634.3,2.02748]
[1748574360263,1.2078,2634.6,2634.3,1.2684]
[1748574360566,1.96683,2634.6,2634.3,1.2684]
[1748574360767,1.2078,2634.6,2634.4,0.75905]
[1748574360955,1.96682,2634.6,2634.3,2.02747]
[1748574361159,1.96682,2634.6,2634.3,1.2684]
[1748574361568,1.96682,2634.6,2634.3,2.02748]
[1748574361755,1.2078,2634.6,2634.3,1.2684]
[1748574361959,0.75909,2634.3,2634.2,0.00569519]
[1748574363165,5.75909,2634.3,2634.2,0.00569519]
[1748574363372,8.96689,2634.3,2634.2,0.00569519]
[1748574363573,3.96689,2634.3,2634.2,0.00569519]
[1748574363763,1.3025,2634.4,2634.2,0.00569519]
[1748574363964,0.75909,2634.3,2634.2,0.00569519]
[1748574364172,0.00569519,2634.5,2634.3,0.75908]
[1748574364362,0.00569519,2634.5,2634.3,1.2266]
[1748574364566,0.75906,2634.4,2634.3,1.2266]
[1748574365070,0.75909,2634.3,2634.2,0.00569519]
[1748574365469,8.96689,2634.3,2634.2,0.00569519]
[1748574366679,1.8978,2634.2,2633.4,1.2266]
[1748574366973,3.2078,2634.0,2633.6,0.75929]
[1748574367169,0.75922,2633.9,2633.7,0.75926]
[1748574367375,3.2078,2634.0,2633.8,0.75922]
[1748574367376,5.22379,2634.0,2633.8,0.75922]
[1748574367575,5.22379,2634.0,2633.4,1.2266]
[1748574367576,0.75922,2633.9,2633.7,0.75925]
[1748574367777,3.2078,2634.0,2633.8,1.2326]
[1748574368078,0.75925,2633.8,2633.6,0.00569519]
[1748574368283,0.75925,2633.8,2633.6,0.76498519]
[1748574368979,3.2078,2634.0,2633.9,0.7592]
[1748574370069,3.2078,2634.0,2633.8,0.75922]
[1748574370265,3.2078,2634.0,2633.8,2.07592]
[1748574370673,3.96698,2634.0,2633.8,1.3167]
[1748574370872,3.2078,2634.0,2633.8,2.07592]
[1748574371781,3.96698,2634.0,2633.8,1.3167]
[1748574371984,3.2078,2634.0,2633.8,1.3167]
[1748574372375,3.96699,2634.0,2633.8,1.3167]
[1748574372577,3.2078,2634.0,2633.8,2.07592]
[1748574373282,3.2078,2634.0,2633.8,2.07591]
[1748574373674,3.96699,2634.0,2633.8,2.07593]
[1748574373877,3.96699,2634.0,2633.8,1.3167]
[1748574374180,3.2078,2634.0,2633.8,1.3167]
[1748574374482,3.2078,2634.0,2633.8,2.07592]
[1748574374684,3.2078,2634.0,2633.8,1.3167]
[1748574375379,1.4349,2634.4,2633.9,0.75919]
[1748574375685,0.7591,2634.3,2634.0,0.75917]
[1748574375975,0.7591,2634.3,2634.1,2.09594]
[1748574376182,3.33259,2634.4,2633.9,3.2078]
[1748574376484,0.75926,2633.7,2633.6,0.00569519]
[1748574376673,5.10564,2634.2,2633.6,0.00569519]
[1748574376878,0.75924,2633.8,2633.6,0.00569519]
[1748574377083,0.75924,2633.8,2633.6,1.34249519]
[1748574377686,0.75924,2633.8,2633.6,2.10177519]
[1748574377894,0.75926,2633.7,2633.6,1.34249519]
[1748574378186,0.75926,2633.7,2633.6,0.00569519]
[1748574378482,1.2295,2633.8,2633.6,0.00569519]
[1748574378782,1.2295,2633.8,2633.6,0.76497519]
[1748574379273,0.76761003,2633.9,2633.6,0.76497519]
[1748574379476,0.00839003,2633.9,2633.7,0.75925]
[1748574379879,0.00839003,2633.9,2633.8,1.2704]
[1748574380279,0.76759003,2633.9,2633.8,1.2704]
[1748574381876,0.00839003,2633.9,2633.8,2.02963]
[1748574382582,0.00839003,2633.9,2633.8,1.2704]
[1748574382781,0.00839003,2633.9,2633.8,2.02963]
[1748574384483,0.76759003,2633.9,2633.8,2.02963]
[1748574384781,0.00839003,2633.9,2633.8,2.02963]
[1748574386187,0.76759003,2633.9,2633.8,2.02963]
[1748574386479,0.76759003,2633.9,2633.8,1.2704]
[1748574387079,12.90039003,2633.9,2633.8,1.2704]
[1748574387278,12.90039003,2633.9,2633.7,1.2665]
[1748574387279,0.75923,2633.8,2633.7,1.2665]
[1748574387482,1.89816,2633.7,2632.8,3.925]
[1748574387680,3.2078,2632.9,2632.4,3.2078]
[1748574387980,0.95804402,2632.8,2632.6,0.75957]
[1748574388183,0.95804402,2632.8,2632.5,0.7596]
[1748574388487,0.95804402,2632.8,2632.2,3.2078]
[1748574388488,0.95804402,2632.8,2632.6,0.75956]
[1748574388990,0.1898,2632.7,2632.6,0.75956]
[1748574389180,0.75958,2632.6,2632.5,0.75959]
[1748574389577,0.75958,2632.6,2632.5,0.82952857]
[1748574389782,0.75958,2632.6,2632.5,0.06993857]
[1748574390385,0.94937,2632.7,2632.5,0.82954857]
[1748574390684,0.94937,2632.7,2632.5,0.75961]
[1748574391583,0.94937,2632.7,2632.4,0.00569519]
[1748574391890,0.94937,2632.7,2632.5,0.7596]
[1748574392285,0.94937,2632.7,2632.4,0.76531519]
[1748574392486,0.75958,2632.6,2632.4,0.00569519]
[1748574392685,0.75961,2632.5,2632.4,0.00569519]
[1748574393989,0.7596,2632.6,2632.4,0.00569519]
[1748574394693,0.1898,2632.7,2632.4,0.00569519]
[1748574394887,0.75961,2632.5,2632.4,0.00569519]
[1748574397694,3.96741,2632.5,2632.4,0.00569519]
[1748574397891,0.75979,2631.9,2631.7,0.75982]
[1748574398085,1.89916,2632.4,2631.6,7.1518]
[1748574398086,0.75977,2632.0,2631.8,0.75981]
[1748574398991,0.7598,2631.9,2631.7,0.75984]
[1748574399186,1.89917,2632.3,2631.7,0.75984]
[1748574399386,0.75979,2631.9,2631.7,0.75984]
[1748574399589,3.2078,2632.5,2631.6,7.15749519]
[1748574399900,0.75974,2632.1,2631.8,0.75981]
[1748574400094,5.10685,2632.5,2631.8,0.75981]
[1748574400291,0.75976,2632.0,2631.8,0.75981]
[1748574400701,0.75974,2632.1,2631.9,0.75978]
[1748574400992,0.75971,2632.2,2632.0,0.75975]
[1748574401394,0.75974,2632.1,2631.9,0.75977]
[1748574401592,0.75971,2632.2,2631.6,7.22743376]
[1748574401797,0.75971,2632.2,2631.6,7.15749519]
[1748574401999,0.75973,2632.1,2631.9,0.75977]
[1748574402401,5.10685,2632.5,2631.9,0.75976]
[1748574402595,0.75974,2632.1,2631.9,0.75976]
[1748574403298,0.75971,2632.2,2632.0,0.75975]
[1748574403994,1.8991,2632.4,2631.8,0.7598]
[1748574404201,0.75978,2632.0,2631.9,0.75978]
[1748574404788,0.75978,2632.0,2631.8,0.75979]
[1748574405200,1.89917,2632.3,2631.8,0.75979]
[1748574405397,0.75984,2631.7,2631.6,0.07563376]
[1748574405798,3.2078,2632.2,2631.6,0.07563376]
[1748574406000,3.2078,2632.2,2631.6,1.90532519]
[1748574406297,3.2078,2632.2,2631.6,3.95069519]
[1748574406506,3.9675,2632.2,2632.0,0.75974]
[1748574407002,3.9675,2632.2,2632.0,0.06993857]
[1748574407200,0.75972,2632.1,2632.0,0.06993857]
[1748574409005,0.75974,2632.1,2631.9,0.75978]
[1748574409206,0.75975,2632.0,2631.9,0.75978]
[1748574409806,0.75975,2632.0,2631.8,0.75979]
[1748574410204,3.2078,2632.2,2631.6,3.95069519]
[1748574410408,0.75978,2631.9,2631.7,0.75983]
[1748574410611,0.1899,2632.1,2631.7,0.75983]
[1748574411102,0.75977,2632.0,2631.8,0.7598]
[1748574411299,0.1899,2632.1,2632.0,0.75975]
[1748574411501,3.2078,2632.8,2632.7,0.75955]
[1748574411804,3.2078,2632.8,2632.3,3.2078]
[1748574412008,0.75957,2632.7,2632.4,0.75962]
[1748574413008,3.96733,2632.8,2632.5,0.75961]
[1748574413798,3.2078,2632.8,2632.6,0.75957]
[1748574414004,3.2078,2632.8,2632.3,3.2078]
[1748574414210,3.2078,2632.8,2632.7,0.75955]
[1748574414408,0.76515519,2633.0,2632.7,0.75955]
[1748574414711,0.00569519,2633.0,2632.9,0.75949]
[1748574417816,0.00569519,2633.0,2632.9,3.96729]
[1748574420010,0.00569519,2633.0,2632.9,3.2078]
[1748574420214,0.76517519,2633.0,2632.4,7.1528]
[1748574420407,0.76517519,2633.0,2632.7,0.75954]
[1748574420608,0.6468,2632.9,2632.8,0.75952]
[1748574420916,0.00569519,2633.0,2632.9,0.75949]
[1748574423818,0.00569519,2633.0,2632.9,1.41599]
[1748574424923,0.00569519,2633.0,2632.9,6.41599]
[1748574425425,0.00569519,2633.0,2632.9,1.41599]
[1748574426817,5.19e-06,2633.0,2632.9,6.41599]
[1748574428121,0.64129003,2633.9,2633.8,0.75923]
[1748574428419,0.64129003,2633.9,2633.8,4.66623]
[1748574429017,0.00839003,2633.9,2633.8,4.66623]
[1748574429419,0.00839003,2633.9,2633.8,5.95973]
[1748574430321,0.75899,2634.7,2633.8,5.95973]
[1748574430525,1.2166,2636.5,2635.0,1.89719]
[1748574430718,1.2166,2636.5,2636.4,3.96628]
[1748574430917,2.25096801,2637.4,2636.4,7.1148]
[1748574431122,0.75831,2637.0,2636.9,3.2078]
[1748574431621,0.75837,2636.8,2636.7,0.00569519]
[1748574431814,0.75837,2636.8,2636.7,3.21349519]
[1748574432122,0.00569519,2637.2,2636.7,3.21349519]
[1748574432522,0.75837,2636.8,2636.7,3.21349519]
[1748574432923,5.75837,2636.8,2636.7,3.21349519]
[1748574434527,10.10378,2636.8,2635.9,3.2078]
[1748574434730,0.7586,2636.0,2635.9,3.2078]
[1748574434921,0.75858,2636.1,2635.9,3.2078]
[1748574435224,1.9142,2636.4,2635.9,3.2078]
[1748574435518,1.9142,2636.4,2635.9,3.21349519]
[1748574435723,0.75857,2636.1,2635.9,3.21349519]
[1748574435923,1.9142,2636.4,2635.9,3.21349519]
[1748574436125,0.7586,2636.0,2635.9,3.21349519]
[1748574438024,0.7586,2636.0,2635.9,0.00569519]
[1748574439221,0.75859,2636.1,2635.9,0.00569519]
[1748574439447,1.9142,2636.4,2636.1,0.75855]
[1748574439625,0.75852,2636.3,2636.0,0.75858]
[1748574439823,0.75852,2636.3,2635.9,4.45809519]
[1748574439824,0.75852,2636.3,2636.1,1.2446]
[1748574440029,0.75858,2636.1,2635.9,3.21349519]
[1748574440327,1.2266,2636.3,2635.9,3.21349519]
[1748574440533,0.7586,2636.0,2635.9,4.42459519]
[1748574441032,0.75858,2636.1,2635.9,5.18322519]
[1748574441423,0.7586,2636.0,2635.9,4.42459519]
[1748574441824,0.7586,2636.0,2635.9,3.21349519]
[1748574444944,1.2266,2636.3,2635.9,3.21349519]
[1748574445141,0.75858,2636.1,2635.9,3.97210519]
[1748574445348,0.75858,2636.1,2636.0,1.2966]
[1748574446449,0.75856,2636.2,2636.0,2.0552]
[1748574446649,1.38959,2636.4,2636.2,0.75853]
[1748574446849,1.38958,2636.4,2636.3,1.2776]
[1748574447043,3.2078,2636.5,2636.3,1.2776]
[1748574447241,0.6153,2636.9,2636.4,3.2078]
[1748574447444,0.75845,2636.5,2636.4,3.2078]
[1748574447643,0.75848,2636.4,2636.3,3.903]
[1748574447947,0.75848,2636.5,2636.3,4.66151]
[1748574448248,1.2683,2636.8,2636.3,5.1806]
[1748574448441,0.75846,2636.5,2636.4,0.75847]
[1748574448642,1.2683,2636.8,2636.4,1.2776]
[1748574448851,0.6153,2636.9,2636.5,3.2078]
[1748574449046,0.7584,2636.7,2636.6,1.2776]
[1748574449749,0.6153,2636.9,2636.6,1.2776]
[1748574450050,1.37365,2636.9,2636.7,0.75837]
[1748574450246,0.00569519,2637.2,2636.8,4.4708]
[1748574450452,0.00569519,2637.2,2637.1,0.75828]
[1748574450745,0.75806,2637.9,2637.1,0.75828]
[1748574450746,1.89514,2637.9,2637.1,3.2078]
[1748574450947,1.89553,2637.4,2636.8,5.38]
[1748574451147,3.2078,2638.0,2637.6,0.75814]
[1748574451348,0.75813,2637.7,2637.6,3.2078]
[1748574451551,0.75817,2637.5,2637.4,3.21349519]
[1748574451850,0.75817,2637.5,2637.4,0.00569519]
[1748574452050,0.75817,2637.5,2637.4,3.20730381]
[1748574452653,0.75825,2637.2,2637.1,4.117]
[1748574453347,1.958,2637.4,2636.9,0.00569519]
[1748574453548,0.75831,2637.0,2636.9,3.21349519]
[1748574453757,0.75831,2637.0,2636.9,0.00569519]
[1748574456452,1.89602,2636.7,2635.9,3.2078]
[1748574456653,0.75852,2636.3,2636.2,3.2078]
[1748574457254,0.6073,2636.6,2636.2,4.441]
[1748574457454,0.75848,2636.4,2636.3,1.2332]
[1748574458759,0.75851,2636.3,2636.2,3.2078]
[1748574459253,0.6073,2636.6,2636.2,3.2078]
[1748574459458,0.75851,2636.4,2636.3,1.3041]
[1748574460361,0.75847,2636.5,2636.3,2.06261]
[1748574460561,0.00569519,2636.7,2636.3,1.9256]
[1748574460756,0.75848,2636.4,2636.3,1.9256]
[1748574461065,0.00569519,2636.7,2636.3,1.9256]
[1748574461358,0.00569519,2636.7,2636.6,3.2078]
[1748574461552,1.71032588,2636.7,2636.6,3.2078]
[1748574461860,0.76409519,2636.7,2636.6,3.2078]
[1748574462054,0.00569519,2636.7,2636.6,3.96623]
[1748574462561,3.2078,2637.4,2636.6,8.96623]
[1748574462754,3.2078,2637.4,2636.9,3.2078]
[1748574462958,3.2078,2637.4,2637.0,0.6038]
[1748574463251,3.2078,2638.1,2637.3,3.2078]
[1748574463457,0.94868581,2638.0,2637.6,3.2078]
[1748574463652,0.94299062,2637.9,2637.4,0.00569519]
[1748574463852,0.7581,2637.8,2637.6,3.2078]
[1748574464056,0.75811,2637.7,2637.6,3.2078]
[1748574464257,0.00569519,2638.0,2637.6,3.96592]
[1748574464559,0.00569519,2638.0,2637.7,0.6038]
[1748574464759,0.00569519,2638.0,2637.7,1.3619]
[1748574464956,0.75808,2637.8,2637.7,0.6038]
[1748574465161,0.75807,2637.9,2637.7,0.6038]
[1748574465664,0.75807,2637.9,2637.8,1.3265]
[1748574466053,0.75811,2637.7,2637.6,3.2078]
[1748574466263,0.75811,2637.7,2637.6,4.5343]
[1748574467360,5.10236,2638.7,2637.8,0.75807]
[1748574467563,3.2078,2638.3,2637.9,1.3265]
[1748574467759,1.89471,2638.5,2637.9,1.3265]
[1748574467961,2.18975166,2638.4,2637.9,1.3265]
[1748574468266,4.46209519,2638.4,2637.6,3.2078]
[1748574468462,4.46209519,2638.4,2637.7,1.2305]
[1748574468463,0.75804,2638.0,2637.7,1.2305]
[1748574468668,4.46209519,2638.4,2637.7,1.2305]
[1748574468961,1.89492,2638.2,2637.7,1.2305]
[1748574469164,0.75808,2637.8,2637.7,1.2305]
[1748574469865,0.75807,2637.9,2637.7,1.98859]
[1748574470060,3.2078,2638.1,2637.4,0.00569519]
[1748574470261,0.75815,2637.6,2637.4,1.99437519]
[1748574470458,3.2078,2637.8,2637.4,1.86179519]
[1748574470765,0.7581,2637.8,2637.6,3.96592]
[1748574471070,0.75811,2637.7,2637.6,3.2078]
[1748574471663,0.75817,2637.5,2637.4,0.00569519]
[1748574472967,1.89506,2638.0,2637.4,3.21349519]
[1748574473162,0.75817,2637.5,2637.4,3.21349519]
[1748574473363,0.75816,2637.6,2637.4,3.97168519]
[1748574473565,3.2078,2638.1,2637.4,3.21349519]
[1748574473566,0.75812,2637.7,2637.4,3.21349519]
[1748574473772,3.2078,2638.1,2637.4,3.21349519]
[1748574474067,0.75809,2637.8,2637.4,3.21349519]
[1748574474368,3.2078,2638.1,2637.7,0.75809]
[1748574474369,0.75806,2637.9,2637.7,0.75809]
[1748574475463,0.75804,2638.0,2637.4,3.21349519]
[1748574475764,0.75803,2638.0,2637.8,0.75807]
[1748574475968,0.75801,2638.1,2637.9,1.2708]
[1748574476167,0.75798,2638.2,2637.9,2.02885]
[1748574476370,0.758,2638.1,2637.9,2.02885]
[1748574476576,0.00569519,2638.4,2638.0,3.2078]
[1748574476773,0.34473767,2639.7,2639.4,0.75762]
[1748574477071,0.34473767,2639.7,2639.6,3.2078]
[1748574478267,1.10226767,2639.7,2639.6,3.2078]
[1748574478763,0.75759,2639.5,2639.4,0.00568429]
[1748574479272,5.75759,2639.5,2639.4,0.00568429]
[1748574479473,7.06929,2639.5,2639.4,4.29e-06]
[1748574479767,11.41029,2639.5,2639.4,4.29e-06]
[1748574479973,12.32615365,2639.5,2639.4,4.29e-06]
[1748574480376,0.75759,2639.5,2639.4,4.29e-06]
[1748574480570,0.34473767,2639.7,2639.4,4.29e-06]
[1748574480878,0.34473767,2639.7,2639.6,3.2078]
[1748574480879,1.10226767,2639.7,2639.6,3.2078]
[1748574481263,1.10226767,2639.7,2639.4,4.29e-06]
[1748574481264,0.75759,2639.5,2639.4,4.29e-06]
[1748574481869,6.34089,2639.5,2639.4,4.29e-06]
[1748574482469,0.75759,2639.5,2639.4,4.29e-06]
[1748574482766,0.34473767,2639.7,2639.4,4.29e-06]
[1748574482969,0.75759,2639.5,2639.4,4.29e-06]
[1748574483166,0.75757,2639.6,2639.4,4.29e-06]
[1748574483369,0.34473767,2639.7,2639.4,4.29e-06]
[1748574483574,0.34473767,2639.7,2639.6,3.96536]
[1748574483975,0.34473767,2639.7,2639.6,8.96536]
[1748574484180,3.2078,2641.9,2640.1,3.2078]
[1748574484477,1.2257,2642.1,2641.4,3.2078]
[1748574484668,0.75702,2641.5,2641.4,3.2078]
[1748574484874,3.2078,2641.7,2640.7,3.2078]
[1748574485077,0.75718,2641.0,2640.9,0.00568429]
[1748574485271,0.00568429,2641.5,2640.9,4.59468429]
[1748574485475,0.76270429,2641.5,2641.4,3.2078]
[1748574485878,0.75705,2641.4,2641.1,3.2078]
[1748574486082,0.75705,2641.4,2641.3,3.2078]
[1748574486276,0.75708,2641.3,2641.2,1.2961]
[1748574486579,0.00568429,2641.5,2641.2,4.5039]
[1748574486782,0.00568429,2641.5,2641.3,1.2961]
[1748574487375,0.75705,2641.4,2641.3,1.2961]
[1748574488081,0.00568429,2641.5,2640.9,3.21348429]
[1748574488278,0.75708,2641.3,2641.2,3.2078]
[1748574488477,0.75712,2641.2,2641.0,1.2961]
[1748574488784,0.00568429,2641.5,2641.0,1.2961]
[1748574488974,0.75708,2641.3,2641.0,1.2961]
[1748574489178,0.75706,2641.4,2641.0,2.05325]
[1748574489379,0.00568429,2641.5,2641.0,1.2961]
[1748574489584,0.75712,2641.2,2641.0,1.2961]
[1748574489883,0.00568429,2641.5,2641.0,1.2961]
[1748574490581,0.75713,2641.1,2641.0,1.2961]
[1748574490788,0.00568429,2641.5,2641.0,1.2961]
[1748574490978,0.75709,2641.3,2641.0,1.2961]
[1748574491171,0.00568429,2641.5,2641.0,2.05326]
[1748574491375,0.00568429,2641.5,2641.0,1.2961]
[1748574491783,0.75712,2641.2,2641.0,1.2961]
[1748574491980,0.75713,2641.1,2641.0,1.2961]
[1748574492174,3.21348429,2641.5,2640.9,3.21348429]
[1748574492477,0.75716,2641.0,2640.9,3.21348429]
[1748574493085,0.75716,2641.0,2640.9,0.00568429]
[1748574493284,1.89298,2640.9,2640.3,3.2078]
[1748574493476,0.75732,2640.5,2640.3,0.75736]
[1748574494183,0.75736,2640.3,2640.2,3.2078]
[1748574494483,0.75732,2640.5,2640.2,0.75737]
[1748574494781,3.2078,2640.8,2640.1,3.2078]
[1748574494986,0.75731,2640.5,2640.2,0.75739]
[1748574495278,0.75731,2640.5,2640.1,3.2078]
[1748574495279,0.75729,2640.6,2640.3,0.75736]
[1748574495479,3.2078,2641.3,2640.4,3.2078]
[1748574495681,3.2078,2641.3,2640.5,1.227]
[1748574495878,7.7928,2641.3,2640.5,1.227]
[1748574496082,0.75727,2640.7,2640.5,1.227]
[1748574496283,0.75724,2640.8,2640.5,1.9843]
[1748574496479,4.585,2641.2,2640.5,1.227]
[1748574496680,0.75723,2640.8,2640.5,1.9843]
[1748574497480,4.585,2641.2,2640.5,1.227]
[1748574497783,3.13094,2641.1,2640.5,1.227]
[1748574497981,0.75726,2640.7,2640.5,0.6171]
[1748574498284,0.75728,2640.6,2640.5,0.6171]
[1748574500086,3.2078,2641.0,2640.5,0.6171]
[1748574500588,0.75728,2640.6,2640.5,0.6171]
[1748574500790,0.75727,2640.7,2640.5,1.3744]
[1748574500990,0.75728,2640.6,2640.5,0.6171]
[1748574501386,9.68576,2641.0,2640.4,3.96511]
[1748574501684,0.7573,2640.6,2640.4,3.96512]
[1748574501885,1.234,2640.9,2640.4,3.2078]
[1748574502088,0.75727,2640.7,2640.5,0.75729]
[1748574502286,0.75728,2640.6,2640.4,3.96511]
[1748574502482,1.234,2640.9,2640.5,0.7573]
[1748574502781,0.75729,2640.6,2640.4,3.96511]
[1748574502991,0.7574,2640.2,2640.1,3.2078]
[1748574504093,1.8622,2640.5,2640.1,3.2078]
[1748574504287,5.27581,2640.9,2640.1,3.2078]
[1748574504587,5.27581,2640.9,2640.6,0.75726]
[1748574504588,0.75725,2640.7,2640.6,0.75726]
[1748574504783,0.75725,2640.7,2640.6,0.75728]
[1748574504983,3.2078,2640.9,2640.7,0.75723]
[1748574505284,3.96501,2640.9,2640.7,0.75722]
[1748574505486,3.2078,2640.9,2640.2,1.3073]
[1748574505679,0.75729,2640.6,2640.5,0.7573]
[1748574505887,4.5186,2640.9,2640.4,1.3042]
[1748574506088,0.75725,2640.7,2640.6,0.75727]
[1748574506379,3.2078,2640.9,2640.5,0.7573]
[1748574506582,0.75727,2640.7,2640.6,1.3042]
[1748574506888,0.75723,2640.8,2640.7,0.75725]
[1748574507098,3.2078,2640.9,2640.8,0.75722]
[1748574507281,3.965,2640.9,2640.7,0.75724]
[1748574507587,3.965,2640.9,2640.8,1.3255]
[1748574508186,3.965,2640.9,2640.2,1.3073]
[1748574508187,3.2078,2640.9,2640.2,1.3073]
[1748574508393,0.75724,2640.8,2640.6,0.75727]
[1748574508581,3.2078,2640.9,2640.5,2.08279]
[1748574508780,0.75727,2640.7,2640.5,2.08279]
[1748574508984,0.75727,2640.7,2640.6,0.75728]
[1748574509187,0.75727,2640.7,2640.5,2.08278]
[1748574509595,3.2078,2640.9,2640.5,2.08278]
[1748574509984,0.75726,2640.7,2640.5,2.08278]
[1748574510392,0.75726,2640.7,2640.5,1.3255]
[1748574510589,0.75726,2640.7,2640.6,0.75728]
[1748574510790,0.75726,2640.7,2640.5,2.08278]
[1748574510986,0.75725,2640.8,2640.6,0.75728]
[1748574511291,0.75725,2640.8,2640.7,1.2744]
[1748574512197,0.75725,2640.8,2640.7,2.03165]
[1748574512391,0.75725,2640.8,2640.7,1.2744]
[1748574513891,0.75722,2640.8,2640.7,1.2744]
[1748574514492,0.75727,2640.7,2640.5,0.75728]
[1748574514693,0.7573,2640.5,2640.4,4.5045]
[1748574515895,0.75732,2640.5,2640.2,0.639]
[1748574516207,0.75733,2640.4,2640.3,2.05405]
[1748574516586,0.75733,2640.4,2640.3,1.2967]
[1748574517197,0.75733,2640.4,2640.3,2.05406]
[1748574517591,0.75733,2640.4,2640.3,1.2967]
[1748574518194,0.75738,2640.3,2640.1,3.96521]
[1748574518497,0.6127,2640.5,2640.2,2.05449]
[1748574518790,0.75739,2640.2,2640.1,3.2078]
[1748574518988,5.8599,2640.6,2640.1,3.2078]
[1748574518989,3.2078,2640.6,2640.1,3.2078]
[1748574519187,0.75735,2640.4,2640.2,0.75738]
[1748574519400,0.75735,2640.4,2640.2,2.05448]
[1748574519600,6.4726,2640.7,2640.4,0.75733]
[1748574519800,0.75733,2640.5,2640.3,1.96524]
[1748574520100,0.75733,2640.4,2640.3,1.2079]
[1748574520800,0.75731,2640.5,2640.3,1.2079]
[1748574520998,0.7573,2640.5,2640.4,3.96511]
[1748574521792,0.7573,2640.5,2640.4,5.17301]
[1748574521992,0.7573,2640.5,2640.4,1.96521]
[1748574522196,0.7573,2640.5,2640.4,1.2079]
[1748574522407,0.75736,2640.3,2640.2,0.6308]
[1748574522599,1.2942,2640.6,2640.2,1.9127]
[1748574522800,0.75736,2640.3,2640.2,1.2819]
[1748574523191,0.75739,2640.2,2640.1,3.2078]
[1748574524401,0.75742,2640.1,2640.0,0.00568429]
[1748574524698,1.68032276,2640.1,2640.0,0.00568429]
[1748574525101,2.97452276,2640.1,2640.0,0.00568429]
[1748574525398,0.75756,2639.6,2639.5,3.2078]
[1748574525791,0.94586,2639.6,2639.5,3.2078]
[1748574526995,0.75762,2639.4,2639.3,1.88028429]
[1748574527200,0.75761,2639.5,2639.3,2.63792429]
[1748574527599,0.75761,2639.5,2639.4,0.75762]
[1748574527800,0.75761,2639.5,2639.4,1.2506]